lending/lending_fUSD_20250303
["ID","MTS","AMOUNT","RATE_DAILY","PERIOD"]
[355197361,1740996640456,-500.0,0.00014896,2]
[355197362,1740996640466,-159.18,0.00014896,2]
[355197363,1740996640476,-500.0,0.00014896,2]
[355197364,1740996640485,-500.0,0.00014896,2]
[355197365,1740996640495,-500.0,0.00014896,2]
[355197366,1740996640505,-254.53649122,0.00014896,2]
[355197367,1740996640515,-500.0,0.00014896,2]
[355197368,1740996640525,-500.0,0.00014896,2]
[355197369,1740996640535,-511.59882072,0.00014896,2]
[355197370,1740996640545,-500.0,0.00014896,2]
[355197371,1740996640556,-500.0,0.00014896,2]
[355197372,1740996640567,-500.0,0.00014896,2]
[355197373,1740996640577,-467.8896553,0.00014896,2]
[355197374,1740996640587,-500.0,0.00014896,2]
[355197375,1740996640597,-500.0,0.00014896,2]
[355197376,1740996640608,-496.53990853,0.00014896,2]
[355197377,1740996640618,-500.0,0.00014896,2]
[355197378,1740996640628,-500.0,0.00014896,2]
[355197379,1740996640637,-500.0,0.00014896,2]
[355197380,1740996640647,-500.0,0.00014896,2]
[355197381,1740996640657,-526.46878907,0.00014896,2]
[355197382,1740996640667,-500.0,0.00014896,2]
[355197383,1740996640676,-500.0,0.00014896,2]
[355197384,1740996640686,-500.0,0.00014896,2]
[355197385,1740996640695,-500.0,0.00014896,2]
[355197386,1740996640705,-500.0,0.00014896,2]
[355197387,1740996640714,-500.0,0.00014896,2]
[355197388,1740996640724,-500.0,0.00014896,2]
[355197389,1740996640733,-196.68167627,0.00014896,2]
[355197390,1740996640743,-500.0,0.00014896,2]
[355197391,1740996640752,-327.72,0.00014896,2]
[355197392,1740996640762,-500.0,0.00014896,2]
[355197393,1740996640771,-500.0,0.00014896,2]
[355197394,1740996640780,-500.0,0.00014896,2]
[355197395,1740996640789,-500.0,0.00014896,2]
[355197396,1740996640798,-500.0,0.00014896,2]
[355197397,1740996640808,-500.0,0.00014896,2]
[355197398,1740996640820,-500.0,0.00014896,2]
[355197399,1740996640830,-500.0,0.00014896,2]
[355197400,1740996640839,-500.0,0.00014896,2]
[355197401,1740996640848,-500.0,0.00014896,2]
[355197402,1740996640858,-281.38588604,0.00014896,2]
[355197403,1740996640872,-366.406682,0.00014896,2]
[355197404,1740996640882,-262.10357375,0.00014896,2]
[355197405,1740996640892,-500.0,0.00014896,2]
[355197406,1740996640901,-500.0,0.00014896,2]
[355197407,1740996640911,-500.0,0.00014896,2]
[355197408,1740996640922,-500.0,0.00014896,2]
[355197409,1740996640931,-500.0,0.00014896,2]
[355197410,1740996640941,-339.18,0.00014896,2]
[355197411,1740996640951,-500.0,0.00014896,2]
[355197412,1740996640960,-500.0,0.00014896,2]
[355197413,1740996640970,-608.468421,0.00014896,2]
[355197414,1740996640979,-156.631809,0.00014896,2]
[355197415,1740996640989,-500.0,0.00014896,2]
[355197416,1740996641000,-500.0,0.00014896,2]
[355197417,1740996641011,-331.13855383,0.00014896,2]
[355197418,1740996641021,-500.0,0.00014896,2]
[355197419,1740996641030,-150.862109,0.00014896,2]
[355197420,1740996641040,-500.0,0.00014896,2]
[355197421,1740996641050,-500.0,0.00014896,2]
[355197422,1740996641060,-500.0,0.00014896,2]
[355197423,1740996641071,-500.0,0.00014896,2]
[355197424,1740996641080,-500.0,0.00014896,2]
[355197425,1740996641090,-500.0,0.00014896,2]
[355197426,1740996641100,-500.0,0.00014896,2]
[355197427,1740996641110,-500.0,0.00014896,2]
[355197428,1740996641119,-500.0,0.00014896,2]
[355197429,1740996641129,-500.0,0.00014896,2]
[355197430,1740996641138,-500.0,0.00014896,2]
[355197431,1740996641148,-500.0,0.00014896,2]
[355197432,1740996641157,-500.0,0.00014896,2]
[355197433,1740996641167,-500.0,0.00014896,2]
[355197434,1740996641176,-500.0,0.00014896,2]
[355197435,1740996641186,-220.4315403,0.00014896,2]
[355197436,1740996641195,-500.0,0.00014896,2]
[355197437,1740996641206,-500.0,0.00014896,2]
[355197438,1740996641216,-500.0,0.00014896,2]
[355197439,1740996641226,-500.0,0.00014896,2]
[355197440,1740996641236,-500.0,0.00014896,2]
[355197441,1740996641246,-500.0,0.00014896,2]
[355197442,1740996641255,-500.0,0.00014896,2]
[355197443,1740996641265,-500.0,0.00014896,2]
[355197444,1740996641274,-500.0,0.00014896,2]
[355197445,1740996641284,-500.0,0.00014896,2]
[355197446,1740996641293,-500.0,0.00014896,2]
[355197447,1740996641303,-500.0,0.00014896,2]
[355197448,1740996641315,-500.0,0.00014896,2]
[355197449,1740996641325,-500.0,0.00014896,2]
[355197450,1740996641335,-320.17919334,0.00014896,2]
[355197451,1740996641345,-500.0,0.00014896,2]
[355197452,1740996641355,-500.0,0.00014896,2]
[355197453,1740996641365,-500.0,0.00014896,2]
[355197454,1740996641374,-500.0,0.00014896,2]
[355197455,1740996641388,-500.0,0.00014896,2]
[355197456,1740996641398,-511.44715032,0.00014896,2]
[355197457,1740996641407,-510.46523425,0.00014896,2]
[355197458,1740996641417,-523.90273627,0.00014896,2]
[355197459,1740996641426,-500.0,0.00014896,2]
[355197460,1740996641436,-500.0,0.00014896,2]
[355197461,1740996641446,-500.0,0.00014896,2]
[355197462,1740996641455,-500.0,0.00014896,2]
[355197463,1740996641465,-500.0,0.00014896,2]
[355197464,1740996641475,-500.0,0.00014896,2]
[355197465,1740996641486,-500.0,0.00014896,2]
[355197466,1740996641497,-229.69308774,0.00014896,2]
[355197467,1740996641507,-500.0,0.00014896,2]
[355197468,1740996641516,-500.0,0.00014896,2]
[355197469,1740996641526,-305.19336176,0.00014896,2]
[355197470,1740996641536,-500.0,0.00014896,2]
[355197471,1740996641546,-500.0,0.00014896,2]
[355197472,1740996641556,-500.0,0.00014896,2]
[355197473,1740996641569,-500.0,0.00014896,2]
[355197474,1740996641578,-500.0,0.00014896,2]
[355197475,1740996641587,-500.0,0.00014896,2]
[355197476,1740996641597,-628.54613733,0.00014896,2]
[355197477,1740996641607,-512.88297368,0.00014896,2]
[355197478,1740996641617,-509.9185555,0.00014896,2]
[355197479,1740996641627,-502.7340676,0.00014896,2]
[355197480,1740996641636,-501.66412599,0.00014896,2]
[355197481,1740996641646,-500.0,0.00014896,2]
[355197482,1740996641655,-581.18624966,0.00014896,2]
[355197483,1740996641665,-500.0,0.00014896,2]
[355197484,1740996641675,-500.0,0.00014896,2]
[355197485,1740996641684,-500.0,0.00014896,2]
[355197486,1740996641694,-311.42168225,0.00014896,2]
[355197487,1740996641703,-500.0,0.00014896,2]
[355197488,1740996641714,-500.0,0.00014896,2]
[355197489,1740996641724,-501.85715248,0.00014896,2]
[355197490,1740996641739,-500.0,0.00014896,2]
[355197491,1740996641749,-494.29463439,0.00014896,2]
[355197492,1740996641759,-500.0,0.00014896,2]
[355197493,1740996641769,-503.25640409,0.00014896,2]
[355197494,1740996641779,-644.20114815,0.00014896,2]
[355197495,1740996641789,-500.0,0.00014896,2]
[355197496,1740996641798,-500.0,0.00014896,2]
[355197497,1740996641808,-500.0,0.00014896,2]
[355197498,1740996641819,-500.0,0.00014896,2]
[355197499,1740996641829,-330.80703194,0.00014896,2]
[355197500,1740996641839,-500.0,0.00014896,2]
[355197501,1740996641848,-500.0,0.00014896,2]
[355197502,1740996641858,-503.31990708,0.00014896,2]
[355197503,1740996641867,-500.0,0.00014896,2]
[355197504,1740996641876,-500.0,0.00014896,2]
[355197505,1740996641886,-647.49000128,0.00014896,2]
[355197506,1740996641895,-500.0,0.00014896,2]
[355197507,1740996641904,-505.88869705,0.00014896,2]
[355197508,1740996641914,-500.0,0.00014896,2]
[355197509,1740996641924,-537.24604114,0.00014896,2]
[355197510,1740996641933,-643.5,0.00014896,2]
[355197511,1740996641943,-500.0,0.00014896,2]
[355197512,1740996641952,-500.0,0.00014896,2]
[355197513,1740996641962,-507.29567734,0.00014896,2]
[355197514,1740996641971,-500.0,0.00014896,2]
[355197515,1740996641981,-500.0,0.00014896,2]
[355197516,1740996641990,-865.2,0.00014896,2]
[355197517,1740996642000,-871.76,0.00014896,2]
[355197518,1740996642010,-6800.62,0.00014896,2]
[355197519,1740996642019,-1000.0,0.00014896,2]
[355197520,1740996642029,-500.0,0.00014896,2]
[355197521,1740996642038,-495.48167682,0.00014896,2]
[355197522,1740996642047,-524.30221681,0.00014896,2]
[355197523,1740996642057,-598.34,0.00014896,2]
[355197524,1740996642068,-501.60718372,0.00014896,2]
[355197525,1740996642077,-500.0,0.00014896,2]
[355197526,1740996642086,-10595.82,0.00014896,2]
[355197527,1740996642095,-505.02173268,0.00014896,2]
[355197528,1740996642105,-500.0,0.00014896,2]
[355197529,1740996642114,-657.83,0.00014896,2]
[355197530,1740996642123,-500.0,0.00014896,2]
[355197531,1740996642132,-500.0,0.00014896,2]
[355197532,1740996642141,-500.0,0.00014896,2]
[355197533,1740996642150,-500.0,0.00014896,2]
[355197534,1740996642159,-500.0,0.00014896,2]
[355197535,1740996642168,-8049.55,0.00014896,2]
[355197536,1740996642177,-516.83709799,0.00014896,2]
[355197537,1740996642186,-500.0,0.00014896,2]
[355197538,1740996642195,-744.4,0.00014896,2]
[355197539,1740996642204,-500.0,0.00014896,2]
[355197540,1740996642213,-826.13,0.00014896,2]
[355197541,1740996642222,-665.69,0.00014896,2]
[355197542,1740996642231,-500.0,0.00014896,2]
[355197543,1740996642241,-9681.07,0.00014896,2]
[355197544,1740996642250,-1014.96,0.00014896,2]
[355197545,1740996642260,-500.0,0.00014896,2]
[355197546,1740996642269,-510.86282653,0.00014896,2]
[355197547,1740996642278,-500.0,0.00014896,2]
[355197548,1740996642287,-500.0,0.00014896,2]
[355197549,1740996642296,-500.0,0.00014896,2]
[355197550,1740996642308,-500.0,0.00014896,2]
[355197551,1740996642320,-655.12,0.00014896,2]
[355197552,1740996642329,-553.08,0.00014896,2]
[355197553,1740996642339,-1564.89,0.00014896,2]
[355197554,1740996642349,-500.0,0.00014896,2]
[355197555,1740996642359,-500.0,0.00014896,2]
[355197556,1740996642369,-500.0,0.00014896,2]
[355197557,1740996642379,-500.0,0.00014896,2]
[355197558,1740996642390,-500.0,0.00014896,2]
[355197559,1740996642399,-500.0,0.00014896,2]
[355197560,1740996642408,-500.0,0.00014896,2]
[355197561,1740996642418,-854.94,0.00014896,2]
[355197562,1740996642428,-500.0,0.00014896,2]
[355197563,1740996642439,-504.05336815,0.00014896,2]
[355197564,1740996642449,-500.0,0.00014896,2]
[355197565,1740996642458,-507.03654661,0.00014896,2]
[355197566,1740996642467,-502.95548623,0.00014896,2]
[355197567,1740996642478,-500.0,0.00014896,2]
[355197568,1740996642487,-500.0,0.00014896,2]
[355197569,1740996642497,-500.0,0.00014896,2]
[355197570,1740996642507,-500.0,0.00014896,2]
[355197571,1740996642517,-500.0,0.00014896,2]
[355197572,1740996642527,-22937.17,0.00014896,2]
[355197573,1740996642538,-500.0,0.00014896,2]
[355197574,1740996642547,-504.00872805,0.00014896,2]
[355197575,1740996642556,-534.34,0.00014896,2]
[355197576,1740996642566,-500.0,0.00014896,2]
[355197577,1740996642576,-504.89576255,0.00014896,2]
[355197578,1740996642585,-620.54,0.00014896,2]
[355197579,1740996642594,-500.0,0.00014896,2]
[355197580,1740996642603,-504.91773777,0.00014896,2]
[355197581,1740996642614,-500.0,0.00014896,2]
[355197582,1740996642802,-500.0,0.00014896,2]
[355197583,1740996642813,-213.3030127,0.00014896,2]
[355197584,1740996642825,-500.0,0.00014896,2]
[355197585,1740996642835,-990.77,0.00014896,2]
[355197586,1740996642846,-500.0,0.00014896,2]
[355197587,1740996642855,-500.0,0.00014896,2]
[355197588,1740996642865,-500.0,0.00014896,2]
[355197589,1740996642875,-450.28362998,0.00014896,2]
[355197590,1740996642885,-500.0,0.00014896,2]
[355197591,1740996642894,-697.15,0.00014896,2]
[355197592,1740996642904,-500.0,0.00014896,2]
[355197593,1740996642914,-500.0,0.00014896,2]
[355197594,1740996642924,-511.68272493,0.00014896,2]
[355197595,1740996642933,-500.0,0.00014896,2]
[355197596,1740996642943,-500.0,0.00014896,2]
[355197597,1740996642952,-500.0,0.00014896,2]
[355197598,1740996642962,-500.0,0.00014896,2]
[355197599,1740996642972,-500.0,0.00014896,2]
[355197600,1740996642982,-1115.2,0.00014896,2]
[355197601,1740996642992,-500.0,0.00014896,2]
[355197602,1740996643002,-508.32188013,0.00014896,2]
[355197603,1740996643011,-15326.87,0.00014896,2]
[355197604,1740996643021,-500.0,0.00014896,2]
[355197605,1740996643031,-500.0,0.00014896,2]
[355197606,1740996643043,-500.0,0.00014896,2]
[355197607,1740996643053,-500.0,0.00014896,2]
[355197608,1740996643063,-500.0,0.00014896,2]
[355197609,1740996643075,-500.0,0.00014896,2]
[355197610,1740996643085,-503.96516688,0.00014896,2]
[355197611,1740996643095,-500.0,0.00014896,2]
[355197612,1740996643105,-500.0,0.00014896,2]
[355197613,1740996643115,-500.0,0.00014896,2]
[355197614,1740996643125,-500.0,0.00014896,2]
[355197616,1740996643135,-505.88481833,0.00014896,2]
[355197619,1740996643145,-6418.96,0.00014896,2]
[355197622,1740996643155,-500.0,0.00014896,2]
[355197625,1740996643165,-500.0,0.00014896,2]
[355197628,1740996643174,-500.0,0.00014896,2]
[355197631,1740996643183,-500.0,0.00014896,2]
[355197634,1740996643193,-512.84525633,0.00014896,2]
[355197636,1740996643203,-500.0,0.00014896,2]
[355197638,1740996643213,-500.0,0.00014896,2]
[355197639,1740996643223,-500.0,0.00014896,2]
[355197641,1740996643232,-500.0,0.00014896,2]
[355197644,1740996643242,-710.69,0.00014896,2]
[355197646,1740996643251,-511.45727125,0.00014896,2]
[355197648,1740996643261,-500.0,0.00014896,2]
[355197650,1740996643271,-500.0,0.00014896,2]
[355197652,1740996643280,-626.90413421,0.00014896,2]
[355197653,1740996643289,-510.91801415,0.00014896,2]
[355197655,1740996643299,-503.26889779,0.00014896,2]
[355197657,1740996643308,-521.61,0.00014896,2]
[355197659,1740996643324,-16599.88,0.00014896,2]
[355197661,1740996643333,-500.0,0.00014896,2]
[355197663,1740996643343,-504.94864133,0.00014896,2]
[355197665,1740996643352,-500.0,0.00014896,2]
[355197667,1740996643362,-500.95431265,0.00014896,2]
[355197669,1740996643372,-667.74,0.00014896,2]
[355197671,1740996643381,-500.0,0.00014896,2]
[355197673,1740996643393,-512.74308465,0.00014896,2]
[355197675,1740996643403,-500.0,0.00014896,2]
[355197677,1740996643413,-500.0,0.00014896,2]
[355197678,1740996643422,-535.6975656,0.00014896,2]
[355197679,1740996643433,-500.0,0.00014896,2]
[355197680,1740996643442,-500.0,0.00014896,2]
[355197681,1740996643452,-500.0,0.00014896,2]
[355197682,1740996643462,-422.77817279,0.00014896,2]
[355197683,1740996643471,-500.0,0.00014896,2]
[355197684,1740996643482,-500.0,0.00014896,2]
[355197685,1740996643492,-504.00315857,0.00014896,2]
[355197686,1740996643502,-500.0,0.00014896,2]
[355197687,1740996643511,-502.30168363,0.00014896,2]
[355197688,1740996643522,-500.0,0.00014896,2]
[355197689,1740996643531,-500.0,0.00014896,2]
[355197690,1740996643540,-500.0,0.00014896,2]
[355197691,1740996643550,-500.63797356,0.00014896,2]
[355197692,1740996643560,-500.0,0.00014896,2]
[355197693,1740996643572,-500.0,0.00014896,2]
[355197695,1740996643582,-500.54400052,0.00014896,2]
[355197696,1740996643591,-508.39630257,0.00014896,2]
[355197698,1740996643601,-501.23177862,0.00014896,2]
[355197700,1740996643612,-500.0,0.00014896,2]
[355197702,1740996643623,-500.0,0.00014896,2]
[355197704,1740996643633,-642.50653322,0.00014896,2]
[355197706,1740996643643,-241.37659167,0.00014896,2]
[355197708,1740996643652,-500.0,0.00014896,2]
[355197710,1740996643662,-503.1494715,0.00014896,2]
[355197712,1740996643672,-500.76468976,0.00014896,2]
[355197714,1740996643682,-502.98562338,0.00014896,2]
[355197716,1740996643691,-502.28097602,0.00014896,2]
[355197718,1740996643700,-500.0,0.00014896,2]
[355197721,1740996643710,-504.01130486,0.00014896,2]
[355197724,1740996643720,-504.68872492,0.00014896,2]
[355197727,1740996643731,-883.42,0.00014896,2]
[355197730,1740996643741,-506.81496953,0.00014896,2]
[355197733,1740996643750,-503.12018948,0.00014896,2]
[355197736,1740996643759,-500.0,0.00014896,2]
[355197739,1740996643768,-510.03030477,0.00014896,2]
[355197742,1740996643778,-500.0,0.00014896,2]
[355197744,1740996643786,-23082.2,0.00014896,2]
[355197747,1740996643796,-500.0,0.00014896,2]
[355197750,1740996643805,-500.0,0.00014896,2]
[355197753,1740996643816,-503.70242715,0.00014896,2]
[355197756,1740996643826,-500.0,0.00014896,2]
[355197758,1740996643842,-500.0,0.00014896,2]
[355197761,1740996643852,-541.64504412,0.00014896,2]
[355197764,1740996643862,-296.44124529,0.00014896,2]
[355197767,1740996643873,-500.0,0.00014896,2]
[355197770,1740996643882,-506.94183987,0.00014896,2]
[355197773,1740996643892,-500.0,0.00014896,2]
[355197776,1740996643902,-615.97,0.00014896,2]
[355197779,1740996643912,-500.0,0.00014896,2]
[355197782,1740996643921,-500.0,0.00014896,2]
[355197785,1740996643930,-500.0,0.00014896,2]
[355197788,1740996643940,-500.0,0.00014896,2]
[355197791,1740996643950,-664.25,0.00014896,2]
[355197794,1740996643959,-500.0,0.00014896,2]
[355197796,1740996643969,-500.0,0.00014896,2]
[355197798,1740996643979,-500.0,0.00014896,2]
[355197800,1740996643989,-591.50853036,0.00014896,2]
[355197801,1740996643999,-500.0,0.00014896,2]
[355197802,1740996644008,-676.8,0.00014896,2]
[355197803,1740996644018,-500.0,0.00014896,2]
[355197804,1740996644028,-500.0,0.00014896,2]
[355197805,1740996644038,-500.0,0.00014896,2]
[355197806,1740996644049,-500.0,0.00014896,2]
[355197807,1740996644059,-500.0,0.00014896,2]
[355197808,1740996644070,-9180.07,0.00014896,2]
[355197809,1740996644081,-500.0,0.00014896,2]
[355197810,1740996644091,-500.0,0.00014896,2]
[355197811,1740996644101,-500.0,0.00014896,2]
[355197812,1740996644111,-500.0,0.00014896,2]
[355197813,1740996644121,-509.96,0.00014896,2]
[355197814,1740996644131,-501.3364953,0.00014896,2]
[355197815,1740996644141,-7535.87,0.00014896,2]
[355197816,1740996644150,-500.0,0.00014896,2]
[355197817,1740996644160,-28414.2,0.00014896,2]
[355197818,1740996644170,-500.0,0.00014896,2]
[355197819,1740996644181,-500.0,0.00014896,2]
[355197820,1740996644201,-503.59505223,0.00014896,2]
[355197821,1740996644210,-500.0,0.00014896,2]
[355197822,1740996644219,-13370.86,0.00014896,2]
[355197823,1740996644229,-629.78,0.00014896,2]
[355197824,1740996644239,-500.0,0.00014896,2]
[355197826,1740996644248,-522.8745485,0.00014896,2]
[355197827,1740996644258,-500.0,0.00014896,2]
[355197828,1740996644269,-500.0,0.00014896,2]
[355197829,1740996644279,-506.34848073,0.00014896,2]
[355197830,1740996644288,-502.31142639,0.00014896,2]
[355197831,1740996644297,-500.0,0.00014896,2]
[355197832,1740996644307,-500.0,0.00014896,2]
[355197833,1740996644321,-105261.94745319,0.00014897,2]
[355197834,1740996644606,-487.52557497,0.00014897,2]
[355197835,1740996644618,-607.944495,0.00014897,2]
[355197836,1740996644629,-538.49795999,0.00014897,2]
[355197837,1740996644657,-400.15737426,0.00014897,2]
[355197838,1740996644670,-997.65756837,0.00014897,2]
[355197839,1740996644682,-6833.47370333,0.00014897,2]
[355197840,1740996644970,-40261.03487121,0.00014897,2]
[355197841,1740996644980,-642693.19555865,0.00014897,2]
[355197842,1740996645488,-219465.21294861,0.00014897,2]
[355197843,1740996645498,-500.0,0.00014897,2]
[355197844,1740996645507,-500.0,0.00014897,2]
[355197845,1740996645518,-1000.0,0.00014897,2]
[355197846,1740996645528,-500.0,0.00014897,2]
[355197847,1740996645538,-500.0,0.00014897,2]
[355197848,1740996645548,-500.0,0.00014897,2]
[355197849,1740996645558,-500.0,0.00014897,2]
[355197850,1740996645567,-500.0,0.00014897,2]
[355197851,1740996645577,-500.0,0.00014897,2]
[355197852,1740996645588,-152.274513,0.00014897,2]
[355197853,1740996645598,-500.0,0.00014897,2]
[355197854,1740996645608,-500.0,0.00014897,2]
[355197855,1740996645617,-529.05,0.00014897,2]
[355197856,1740996645627,-500.0,0.00014897,2]
[355197857,1740996645637,-500.0,0.00014897,2]
[355197858,1740996645646,-500.0,0.00014897,2]
[355197859,1740996645656,-500.0,0.00014897,2]
[355197860,1740996645666,-178.93487112,0.00014897,2]
[355197861,1740996645675,-500.0,0.00014897,2]
[355197862,1740996645685,-500.0,0.00014897,2]
[355197863,1740996645695,-500.0,0.00014897,2]
[355197864,1740996645704,-500.0,0.00014897,2]
[355197865,1740996645714,-151.0,0.00014897,2]
[355197866,1740996645724,-511.22726332,0.00014897,2]
[355197867,1740996645733,-500.0,0.00014897,2]
[355197868,1740996645743,-500.0,0.00014897,2]
[355197869,1740996645752,-500.0,0.00014897,2]
[355197870,1740996645762,-500.0,0.00014897,2]
[355197871,1740996645772,-151.0,0.00014897,2]
[355197872,1740996645782,-500.0,0.00014897,2]
[355197873,1740996645792,-500.0,0.00014897,2]
[355197874,1740996645801,-500.0,0.00014897,2]
[355197875,1740996645810,-151.0,0.00014897,2]
[355197876,1740996645821,-151.0,0.00014897,2]
[355197877,1740996645830,-500.0,0.00014897,2]
[355197878,1740996645839,-500.0,0.00014897,2]
[355197879,1740996645849,-500.0,0.00014897,2]
[355197880,1740996645859,-500.0,0.00014897,2]
[355197881,1740996645869,-500.0,0.00014897,2]
[355197882,1740996645879,-500.0,0.00014897,2]
[355197883,1740996645889,-500.0,0.00014897,2]
[355197884,1740996645898,-151.0,0.00014897,2]
[355197886,1740996645907,-500.0,0.00014897,2]
[355197887,1740996645917,-151.0,0.00014897,2]
[355197888,1740996645927,-151.0,0.00014897,2]
[355197889,1740996645936,-500.0,0.00014897,2]
[355197891,1740996645946,-500.0,0.00014897,2]
[355197893,1740996645956,-500.0,0.00014897,2]
[355197895,1740996645965,-500.0,0.00014897,2]
[355197897,1740996645975,-500.0,0.00014897,2]
[355197898,1740996645984,-500.0,0.00014897,2]
[355197899,1740996645993,-500.0,0.00014897,2]
[355197900,1740996646003,-500.0,0.00014897,2]
[355197901,1740996646012,-500.0,0.00014897,2]
[355197902,1740996646021,-500.0,0.00014897,2]
[355197903,1740996646031,-500.0,0.00014897,2]
[355197904,1740996646040,-641.51,0.00014897,2]
[355197905,1740996646049,-500.0,0.00014897,2]
[355197906,1740996646059,-500.0,0.00014897,2]
[355197907,1740996646068,-1755.19,0.00014897,2]
[355197908,1740996646078,-500.0,0.00014897,2]
[355197909,1740996646087,-500.0,0.00014897,2]
[355197910,1740996646097,-500.0,0.00014897,2]
[355197911,1740996646107,-151.0,0.00014897,2]
[355197912,1740996646116,-151.0,0.00014897,2]
[355197913,1740996646126,-151.0,0.00014897,2]
[355197914,1740996646137,-151.0,0.00014897,2]
[355197915,1740996646147,-151.0,0.00014897,2]
[355197916,1740996646157,-151.0,0.00014897,2]
[355197917,1740996646166,-503.68561205,0.00014898,2]
[355197918,1740996646175,-206.30256592,0.00014898,2]
[355197919,1740996646186,-500.0,0.00014898,2]
[355197920,1740996646195,-253.94368227,0.00014898,2]
[355197921,1740996646204,-500.0,0.00014898,2]
[355197922,1740996646214,-500.0,0.00014898,2]
[355197923,1740996646224,-500.0,0.00014898,2]
[355197924,1740996646234,-500.0,0.00014898,2]
[355197925,1740996646243,-500.0,0.00014898,2]
[355197926,1740996646253,-504.0662109,0.00014898,2]
[355197927,1740996646262,-500.0,0.00014898,2]
[355197928,1740996646271,-500.0,0.00014898,2]
[355197929,1740996646281,-502.25930658,0.00014898,2]
[355197930,1740996646291,-500.0,0.00014898,2]
[355197931,1740996646302,-517.43892386,0.00014898,2]
[355197932,1740996646316,-418.98,0.00014898,2]
[355197933,1740996646325,-500.0,0.00014898,2]
[355197934,1740996646334,-500.0,0.00014898,2]
[355197935,1740996646344,-500.0,0.00014898,2]
[355197936,1740996646355,-500.0,0.00014898,2]
[355197937,1740996646365,-554.34,0.00014898,2]
[355197938,1740996646375,-437.76,0.00014898,2]
[355197939,1740996646385,-500.0,0.00014898,2]
[355197940,1740996646394,-500.0,0.00014898,2]
[355197941,1740996646403,-500.0,0.00014898,2]
[355197942,1740996646413,-500.0,0.00014898,2]
[355197943,1740996646422,-537.21084772,0.00014898,2]
[355197944,1740996646432,-500.0,0.00014898,2]
[355197945,1740996646442,-500.0,0.00014898,2]
[355197946,1740996646452,-500.0,0.00014898,2]
[355197947,1740996646461,-500.0,0.00014898,2]
[355197949,1740996646470,-500.0,0.00014898,2]
[355197950,1740996646480,-500.0,0.00014898,2]
[355197951,1740996646490,-500.0,0.00014898,2]
[355197952,1740996646500,-5000.0,0.00014898,2]
[355197953,1740996646509,-500.0,0.00014898,2]
[355197954,1740996646519,-500.0,0.00014898,2]
[355197956,1740996646529,-500.0,0.00014898,2]
[355197957,1740996646539,-500.0,0.00014898,2]
[355197958,1740996646549,-500.0,0.00014898,2]
[355197959,1740996646558,-500.0,0.00014898,2]
[355197960,1740996646569,-500.0,0.00014898,2]
[355197961,1740996646578,-228.57410495,0.00014898,2]
[355197962,1740996646588,-500.0,0.00014898,2]
[355197963,1740996646598,-500.0,0.00014898,2]
[355197964,1740996646607,-500.0,0.00014898,2]
[355197965,1740996646617,-500.0,0.00014898,2]
[355197966,1740996646627,-500.0,0.00014898,2]
[355197967,1740996646636,-556.41427303,0.00014898,2]